fUSD/lending_fUSD_20260614
["ID","MTS","AMOUNT","RATE_DAILY","PERIOD"]
[425038080,1781439061000,-500.0,0.00027945,8]
[425038084,1781439061000,-500.0,0.00027945,8]
[425038094,1781439061000,-500.0,0.00027945,8]
[425038072,1781439061000,-237.94,0.00027945,8]
[425038115,1781439061000,-279.94,0.00027945,8]
[425038127,1781439061000,-833.95,0.00027945,8]
[425038114,1781439061000,-561.3,0.00027945,8]
[425038142,1781439061000,-500.0,0.00027945,8]
[425038152,1781439061000,-500.0,0.00027945,8]
[425038151,1781439061000,-322.42,0.00027945,8]
[425038153,1781439061000,-500.0,0.00027945,8]
[425038156,1781439061000,-500.0,0.00027945,8]
[425038158,1781439061000,-207.97,0.00027945,8]
[425038157,1781439061000,-500.0,0.00027945,8]
[425038159,1781439061000,-500.0,0.00027945,8]
[425038162,1781439061000,-500.0,0.00027945,8]
[425038154,1781439061000,-500.0,0.00027945,8]
[425038160,1781439061000,-500.0,0.00027945,8]
[425038161,1781439061000,-500.0,0.00027945,8]
[425038146,1781439061000,-500.0,0.00027945,8]
[425038163,1781439061000,-500.0,0.00027945,8]
[425038171,1781439061000,-500.0,0.00027945,8]
[425038170,1781439061000,-500.0,0.00027945,8]
[425038168,1781439061000,-500.0,0.00027945,8]
[425038167,1781439061000,-164.31,0.00027945,8]
[425038169,1781439061000,-485.06,0.00027945,8]
[425038166,1781439061000,-500.0,0.00027945,8]
[425038173,1781439061000,-500.0,0.00027945,8]
[425038176,1781439061000,-500.0,0.00027945,8]
[425038172,1781439061000,-250.29,0.00027945,8]
[425038165,1781439061000,-264.08,0.00027945,8]
[425038174,1781439061000,-468.5,0.00027945,8]
[425038113,1781439061000,-500.0,0.00027945,8]
[425038164,1781439061000,-500.0,0.00027945,8]
[425038143,1781439061000,-500.0,0.00027945,8]
[425038155,1781439061000,-500.0,0.00027945,8]
[425038148,1781439061000,-500.0,0.00027945,8]
[425038119,1781439061000,-338.92,0.00027945,8]
[425038144,1781439061000,-1000.0,0.00027945,8]
[425038123,1781439061000,-500.0,0.00027945,8]
[425038121,1781439061000,-152.12046224,0.00027945,8]
[425038122,1781439061000,-500.0,0.00027945,8]
[425038125,1781439061000,-500.0,0.00027945,8]
[425038120,1781439061000,-404.41,0.00027945,8]
[425038130,1781439061000,-500.0,0.00027945,8]
[425038128,1781439061000,-500.0,0.00027945,8]
[425038126,1781439061000,-500.0,0.00027945,8]
[425038124,1781439061000,-539.95,0.00027945,8]
[425038131,1781439061000,-500.0,0.00027945,8]
[425038129,1781439061000,-352.24,0.00027945,8]
[425038133,1781439061000,-500.0,0.00027945,8]
[425038175,1781439061000,-500.0,0.00027945,8]
[425038147,1781439061000,-500.0,0.00027945,8]
[425038145,1781439061000,-500.0,0.00027945,8]
[425038132,1781439061000,-500.0,0.00027945,8]
[425038140,1781439061000,-500.0,0.00027945,8]
[425038141,1781439061000,-500.0,0.00027945,8]
[425038138,1781439061000,-434.17,0.00027945,8]
[425038139,1781439061000,-500.0,0.00027945,8]
[425038149,1781439061000,-500.0,0.00027945,8]
[425038136,1781439061000,-500.0,0.00027945,8]
[425038135,1781439061000,-500.0,0.00027945,8]
[425038137,1781439061000,-500.0,0.00027945,8]
[425038134,1781439061000,-211.72,0.00027945,8]
[425038150,1781439061000,-371.78,0.00027945,8]
[425038217,1781439062000,-500.0,0.00027945,8]
[425038222,1781439062000,-500.0,0.00027945,8]
[425038221,1781439062000,-531.43,0.00027945,8]
[425038215,1781439062000,-500.0,0.00027945,8]
[425038216,1781439062000,-500.0,0.00027945,8]
[425038209,1781439062000,-500.0,0.00027945,8]
[425038210,1781439062000,-500.0,0.00027945,8]
[425038208,1781439062000,-500.0,0.00027945,8]
[425038211,1781439062000,-307.15,0.00027945,8]
[425038206,1781439062000,-500.0,0.00027945,8]
[425038219,1781439062000,-267.45,0.00027945,8]
[425038214,1781439062000,-500.0,0.00027945,8]
[425038224,1781439062000,-500.0,0.00027945,8]
[425038234,1781439062000,-200.72,0.00027945,8]
[425038223,1781439062000,-191.52,0.00027945,8]
[425038225,1781439062000,-500.0,0.00027945,8]
[425038220,1781439062000,-575.79,0.00027945,8]
[425038227,1781439062000,-500.0,0.00027945,8]
[425038228,1781439062000,-500.0,0.00027945,7]
[425038237,1781439062000,-500.0,0.00027945,8]
[425038229,1781439062000,-302.41,0.00027945,8]
[425038226,1781439062000,-318.06,0.00027945,8]
[425038230,1781439062000,-344.7,0.00027945,8]
[425038231,1781439062000,-337.63,0.00027945,8]
[425038233,1781439062000,-438.22,0.00027945,8]
[425038232,1781439062000,-617.12,0.00027945,8]
[425038207,1781439062000,-161.5,0.00027945,8]
[425038218,1781439062000,-351.46,0.00027945,8]
[425038205,1781439062000,-500.0,0.00027945,8]
[425038178,1781439062000,-500.0,0.00027945,8]
[425038213,1781439062000,-500.0,0.00027945,8]
[425038185,1781439062000,-500.0,0.00027945,8]
[425038235,1781439062000,-327.7,0.00027945,8]
[425038181,1781439062000,-500.0,0.00027945,8]
[425038180,1781439062000,-500.0,0.00027945,8]
[425038183,1781439062000,-599.29,0.00027945,8]
[425038186,1781439062000,-500.0,0.00027945,8]
[425038184,1781439062000,-500.0,0.00027945,8]
[425038187,1781439062000,-500.0,0.00027945,8]
[425038177,1781439062000,-500.0,0.00027945,8]
[425038179,1781439062000,-247.08,0.00027945,8]
[425038182,1781439062000,-500.0,0.00027945,8]
[425038188,1781439062000,-506.64,0.00027945,8]
[425038196,1781439062000,-500.0,0.00027945,8]
[425038189,1781439062000,-492.86,0.00027945,8]
[425038193,1781439062000,-500.0,0.00027945,8]
[425038200,1781439062000,-541.26,0.00027945,8]
[425038194,1781439062000,-500.0,0.00027945,8]
[425038192,1781439062000,-500.0,0.00027945,8]
[425038199,1781439062000,-343.21,0.00027945,8]
[425038195,1781439062000,-500.0,0.00027945,8]
[425038191,1781439062000,-500.0,0.00027945,8]
[425038197,1781439062000,-500.0,0.00027945,8]
[425038198,1781439062000,-500.0,0.00027945,8]
[425038202,1781439062000,-500.0,0.00027945,8]
[425038212,1781439062000,-500.0,0.00027945,8]
[425038203,1781439062000,-500.0,0.00027945,8]
[425038204,1781439062000,-490.28,0.00027945,8]
[425038201,1781439062000,-500.0,0.00027945,8]
[425038236,1781439062000,-1538.17,0.00027945,8]
[425038190,1781439062000,-500.0,0.00027945,8]
[425038248,1781439062000,-579.4,0.00027945,8]
[425038277,1781439062000,-352.62,0.00027945,8]
[425038275,1781439062000,-500.0,0.00027945,8]
[425038266,1781439062000,-485.44,0.00027945,8]
[425038276,1781439062000,-500.0,0.00027945,8]
[425038274,1781439062000,-500.0,0.00027945,8]
[425038273,1781439062000,-500.0,0.00027945,8]
[425038279,1781439062000,-500.0,0.00027945,8]
[425038280,1781439062000,-500.0,0.00027945,8]
[425038285,1781439062000,-333.91,0.00027945,8]
[425038287,1781439062000,-500.0,0.00027945,8]
[425038284,1781439062000,-500.0,0.00027945,8]
[425038282,1781439062000,-500.0,0.00027945,8]
[425038278,1781439062000,-500.0,0.00027945,8]
[425038272,1781439062000,-500.0,0.00027945,8]
[425038286,1781439062000,-500.0,0.00027945,8]
[425038281,1781439062000,-500.0,0.00027945,8]
[425038288,1781439062000,-500.0,0.00027945,8]
[425038295,1781439062000,-500.0,0.00027945,8]
[425038292,1781439062000,-500.0,0.00027945,8]
[425038291,1781439062000,-500.0,0.00027945,8]
[425038289,1781439062000,-620.52,0.00027945,8]
[425038294,1781439062000,-500.0,0.00027945,8]
[425038299,1781439062000,-500.0,0.00027945,8]
[425038297,1781439062000,-361.27,0.00027945,8]
[425038290,1781439062000,-254.66,0.00027945,8]
[425038298,1781439062000,-500.0,0.00027945,8]
[425038296,1781439062000,-531.38,0.00027945,8]
[425038238,1781439062000,-500.0,0.00027945,8]
[425038283,1781439062000,-500.0,0.00027945,8]
[425038267,1781439062000,-500.0,0.00027945,8]
[425038293,1781439062000,-500.0,0.00027945,8]
[425038268,1781439062000,-500.0,0.00027945,8]
[425038271,1781439062000,-209.5,0.00027945,8]
[425038247,1781439062000,-500.0,0.00027945,8]
[425038240,1781439062000,-500.0,0.00027945,8]
[425038250,1781439062000,-500.0,0.00027945,8]
[425038246,1781439062000,-500.0,0.00027945,8]
[425038243,1781439062000,-500.0,0.00027945,8]
[425038249,1781439062000,-500.0,0.00027945,8]
[425038244,1781439062000,-500.0,0.00027945,8]
[425038242,1781439062000,-500.0,0.00027945,8]
[425038245,1781439062000,-500.0,0.00027945,8]
[425038239,1781439062000,-272.29,0.00027945,8]
[425038252,1781439062000,-507.44,0.00027945,8]
[425038263,1781439062000,-500.0,0.00027945,8]
[425038264,1781439062000,-500.0,0.00027945,8]
[425038241,1781439062000,-500.0,0.00027945,8]
[425038251,1781439062000,-359.5,0.00027945,8]
[425038269,1781439062000,-500.0,0.00027945,8]
[425038262,1781439062000,-500.0,0.00027945,8]
[425038270,1781439062000,-408.3,0.00027945,8]
[425038265,1781439062000,-500.0,0.00027945,8]
[425038259,1781439062000,-500.0,0.00027945,8]
[425038261,1781439062000,-500.0,0.00027945,8]
[425038260,1781439062000,-500.0,0.00027945,8]
[425038256,1781439062000,-500.0,0.00027945,8]
[425038254,1781439062000,-500.0,0.00027945,8]
[425038258,1781439062000,-500.0,0.00027945,8]
[425038255,1781439062000,-500.0,0.00027945,8]
[425038253,1781439062000,-478.76,0.00027945,8]
[425038257,1781439062000,-500.0,0.00027945,8]
[425038326,1781439063000,-500.0,0.00027945,8]
[425038332,1781439063000,-349.39,0.00027945,8]
[425038323,1781439063000,-518.26,0.00027945,8]
[425038325,1781439063000,-500.0,0.00027945,8]
[425038328,1781439063000,-1000.0,0.00027945,8]
[425038329,1781439063000,-500.0,0.00027945,8]
[425038327,1781439063000,-500.0,0.00027945,8]
[425038330,1781439063000,-500.0,0.00027945,8]
[425038333,1781439063000,-267.91,0.00027945,8]
[425038345,1781439063000,-500.0,0.00027945,8]
[425038334,1781439063000,-500.0,0.00027945,8]
[425038336,1781439063000,-361.54,0.00027945,8]
[425038344,1781439063000,-576.14,0.00027945,8]
[425038335,1781439063000,-500.0,0.00027945,8]
[425038341,1781439063000,-258.82,0.00027945,8]
[425038339,1781439063000,-500.0,0.00027945,8]
[425038321,1781439063000,-500.0,0.00027945,8]
[425038338,1781439063000,-500.0,0.00027945,8]
[425038331,1781439063000,-626.42,0.00027945,8]
[425038322,1781439063000,-298.0,0.00027945,8]
[425038308,1781439063000,-532.28,0.00027945,8]
[425038317,1781439063000,-737.45,0.00027945,8]
[425038337,1781439063000,-228.2,0.00027945,8]
[425038300,1781439063000,-500.0,0.00027945,8]
[425038303,1781439063000,-500.0,0.00027945,8]
[425038301,1781439063000,-500.0,0.00027945,8]
[425038302,1781439063000,-603.21,0.00027945,8]
[425038305,1781439063000,-500.0,0.00027945,8]
[425038304,1781439063000,-245.1,0.00027945,8]
[425038307,1781439063000,-500.0,0.00027945,8]
[425038306,1781439063000,-608.76,0.00027945,8]
[425038313,1781439063000,-353.89800763,0.00027945,8]
[425038309,1781439063000,-500.0,0.00027945,8]
[425038310,1781439063000,-169.74,0.00027945,8]
[425038312,1781439063000,-500.0,0.00027945,8]
[425038315,1781439063000,-198.76,0.00027945,8]
[425038314,1781439063000,-500.0,0.00027945,8]
[425038318,1781439063000,-642.39,0.00027945,8]
[425038324,1781439063000,-207.07,0.00027945,8]
[425038319,1781439063000,-500.0,0.00027945,8]
[425038316,1781439063000,-500.0,0.00027945,8]
[425038320,1781439063000,-500.0,0.00027945,8]
[425038311,1781439063000,-500.0,0.00027945,8]
[425038343,1781439063000,-319.4,0.00027945,8]
[425038357,1781439063000,-424.622988,0.00027945,7]
[425038342,1781439063000,-500.0,0.00027945,8]
[425038372,1781439063000,-500.0,0.00027945,8]
[425038371,1781439063000,-2000.0,0.00027945,2]
[425038370,1781439063000,-641.7,0.00027945,8]
[425038378,1781439063000,-500.0,0.00027945,8]
[425038377,1781439063000,-500.0,0.00027945,8]
[425038374,1781439063000,-500.0,0.00027945,8]
[425038375,1781439063000,-566.12,0.00027945,8]
[425038373,1781439063000,-500.0,0.00027945,8]
[425038380,1781439063000,-500.0,0.00027945,8]
[425038376,1781439063000,-500.0,0.00027945,8]
[425038382,1781439063000,-500.0,0.00027945,8]
[425038381,1781439063000,-500.0,0.00027945,8]
[425038383,1781439063000,-500.0,0.00027945,8]
[425038385,1781439063000,-500.0,0.00027945,8]
[425038387,1781439063000,-236.03,0.00027946,7]
[425038384,1781439063000,-500.0,0.00027945,8]
[425038386,1781439063000,-234.54,0.00027946,7]
[425038388,1781439063000,-262.3707909,0.00027964,2]
[425038340,1781439063000,-241.02,0.00027945,8]
[425038369,1781439063000,-500.0,0.00027945,8]
[425038366,1781439063000,-198.68,0.00027945,8]
[425038379,1781439063000,-500.0,0.00027945,8]
[425038363,1781439063000,-151.0,0.00027945,7]
[425038346,1781439063000,-500.0,0.00027945,8]
[425038368,1781439063000,-151.0,0.00027945,7]
[425038347,1781439063000,-500.0,0.00027945,8]
[425038349,1781439063000,-500.0,0.00027945,8]
[425038348,1781439063000,-500.0,0.00027945,8]
[425038351,1781439063000,-604.92,0.00027945,8]
[425038353,1781439063000,-339.3,0.00027945,8]
[425038356,1781439063000,-500.0,0.00027945,8]
[425038352,1781439063000,-200.26,0.00027945,8]
[425038350,1781439063000,-500.0,0.00027945,8]
[425038355,1781439063000,-256.82,0.00027945,8]
[425038359,1781439063000,-424.622988,0.00027945,7]
[425038358,1781439063000,-424.622988,0.00027945,7]
[425038361,1781439063000,-424.622988,0.00027945,7]
[425038360,1781439063000,-500.0,0.00027945,8]
[425038364,1781439063000,-500.0,0.00027945,8]
[425038362,1781439063000,-500.0,0.00027945,8]
[425038354,1781439063000,-500.0,0.00027945,8]
[425038365,1781439063000,-151.0,0.00027945,7]
[425038367,1781439063000,-151.0,0.00027945,7]
[425038416,1781439064000,-389.86,0.00028219,8]
[425038423,1781439064000,-245.46,0.00028219,8]
[425038419,1781439064000,-500.0,0.00028219,8]
[425038420,1781439064000,-500.0,0.00028219,8]
[425038424,1781439064000,-500.0,0.00028219,8]
[425038426,1781439064000,-500.0,0.00028219,8]
[425038427,1781439064000,-526.37,0.00028219,8]
[425038418,1781439064000,-500.0,0.00028219,8]
[425038425,1781439064000,-500.0,0.00028219,8]
[425038421,1781439064000,-500.0,0.00028219,8]
[425038422,1781439064000,-500.0,0.00028219,8]
[425038432,1781439064000,-649.5,0.00028219,8]
[425038428,1781439064000,-611.57,0.00028219,8]
[425038431,1781439064000,-500.0,0.00028219,8]
[425038430,1781439064000,-311.24,0.00028219,8]
[425038433,1781439064000,-500.0,0.00028219,8]
[425038435,1781439064000,-500.0,0.00028219,8]
[425038436,1781439064000,-429.81,0.00028219,8]
[425038434,1781439064000,-419.91,0.00028219,8]
[425038437,1781439064000,-500.0,0.00028219,8]
[425038439,1781439064000,-171.31,0.00028219,8]
[425038449,1781439064000,-173.77,0.00028219,8]
[425038417,1781439064000,-293.44,0.00028219,8]
[425038429,1781439064000,-500.0,0.00028219,8]
[425038415,1781439064000,-1228.57,0.00028194,7]
[425038396,1781439064000,-236.03,0.00028007,2]
[425038408,1781439064000,-234.7,0.0002813,7]
[425038438,1781439064000,-500.0,0.00028219,8]
[425038391,1781439064000,-236.03,0.00027977,30]
[425038390,1781439064000,-234.54,0.00027977,30]
[425038389,1781439064000,-150.0,0.00027973,2]
[425038392,1781439064000,-200.0,0.00027998,2]
[425038395,1781439064000,-234.54,0.00028007,2]
[425038400,1781439064000,-957.27,0.00028033,30]
[425038397,1781439064000,-1113.48,0.00028033,30]
[425038399,1781439064000,-1307.3,0.00028033,30]
[425038394,1781439064000,-320.76,0.00028,30]
[425038398,1781439064000,-960.17,0.00028033,30]
[425038410,1781439064000,-1113.48,0.00028194,7]
[425038401,1781439064000,-1138.27,0.00028033,30]
[425038403,1781439064000,-234.54,0.00028038,7]
[425038413,1781439064000,-957.27,0.00028194,7]
[425038404,1781439064000,-236.03,0.00028038,7]
[425038405,1781439064000,-10274.98755929,0.00028067,2]
[425038414,1781439064000,-1138.27,0.00028194,7]
[425038406,1781439064000,-234.54,0.00028068,30]
[425038402,1781439064000,-1228.57,0.00028033,30]
[425038412,1781439064000,-1307.3,0.00028194,7]
[425038407,1781439064000,-234.54,0.00028099,2]
[425038409,1781439064000,-5748.0,0.00028155,10]
[425038411,1781439064000,-960.17,0.00028194,7]
[425038393,1781439064000,-41529.38077946,0.00028,3]
[425038440,1781439064000,-500.0,0.00028219,8]
[425038457,1781439064000,-500.0,0.00028219,8]
[425038442,1781439064000,-500.0,0.00028219,8]
[425038468,1781439064000,-500.0,0.00028219,8]
[425038467,1781439064000,-423.74,0.00028219,8]
[425038474,1781439064000,-366.12,0.00028219,8]
[425038476,1781439064000,-500.0,0.00028219,8]
[425038477,1781439064000,-675.07,0.00028219,8]
[425038483,1781439064000,-500.0,0.00028219,8]
[425038475,1781439064000,-500.0,0.00028219,8]
[425038485,1781439064000,-318.3,0.00028219,2]
[425038481,1781439064000,-500.0,0.00028219,8]
[425038478,1781439064000,-500.0,0.00028219,8]
[425038484,1781439064000,-630.2,0.00028219,8]
[425038464,1781439064000,-309.73,0.00028219,8]
[425038480,1781439064000,-500.0,0.00028219,8]
[425038479,1781439064000,-500.0,0.00028219,8]
[425038492,1781439064000,-500.0,0.00028219,8]
[425038490,1781439064000,-500.0,0.00028219,8]
[425038495,1781439064000,-500.0,0.00028219,8]
[425038488,1781439064000,-500.0,0.00028219,8]
[425038486,1781439064000,-500.0,0.00028219,8]
[425038493,1781439064000,-500.0,0.00028219,8]
[425038494,1781439064000,-500.0,0.00028219,8]
[425038491,1781439064000,-500.0,0.00028219,8]
[425038489,1781439064000,-460.39,0.00028219,8]
[425038487,1781439064000,-540.85,0.00028219,8]
[425038482,1781439064000,-500.0,0.00028219,8]
[425038469,1781439064000,-452.73,0.00028219,8]
[425038441,1781439064000,-570.64206652,0.00028219,8]
[425038472,1781439064000,-500.0,0.00028219,8]
[425038462,1781439064000,-500.0,0.00028219,8]
[425038443,1781439064000,-182.51,0.00028219,8]
[425038445,1781439064000,-402.0,0.00028219,8]
[425038446,1781439064000,-500.0,0.00028219,8]
[425038448,1781439064000,-500.0,0.00028219,8]
[425038447,1781439064000,-500.0,0.00028219,8]
[425038450,1781439064000,-500.0,0.00028219,8]
[425038452,1781439064000,-500.0,0.00028219,8]
[425038453,1781439064000,-500.0,0.00028219,8]
[425038461,1781439064000,-500.0,0.00028219,8]
[425038454,1781439064000,-500.0,0.00028219,8]
[425038451,1781439064000,-500.0,0.00028219,8]
[425038444,1781439064000,-500.0,0.00028219,8]
[425038455,1781439064000,-614.26,0.00028219,8]
[425038458,1781439064000,-500.0,0.00028219,8]
[425038466,1781439064000,-500.0,0.00028219,8]
[425038470,1781439064000,-500.0,0.00028219,8]
[425038473,1781439064000,-619.45,0.00028219,8]
[425038465,1781439064000,-500.0,0.00028219,8]
[425038471,1781439064000,-500.0,0.00028219,8]
[425038456,1781439064000,-255.46,0.00028219,8]
[425038496,1781439064000,-500.0,0.00028219,8]
[425038460,1781439064000,-437.98,0.00028219,8]
[425038459,1781439064000,-551.92,0.00028219,8]
[425038463,1781439064000,-500.0,0.00028219,60]
[425038516,1781439065000,-500.0,0.00028219,8]
[425038519,1781439065000,-500.0,0.00028219,8]
[425038523,1781439065000,-833.95,0.00028219,8]
[425038522,1781439065000,-500.0,0.00028219,8]
[425038524,1781439065000,-500.0,0.00028219,8]
[425038521,1781439065000,-500.0,0.00028219,8]
[425038520,1781439065000,-500.0,0.00028219,8]
[425038526,1781439065000,-500.0,0.00028219,8]
[425038527,1781439065000,-575.72,0.00028219,8]
[425038528,1781439065000,-500.0,0.00028219,8]
[425038529,1781439065000,-500.0,0.00028219,8]
[425038531,1781439065000,-505.32,0.00028219,8]
[425038530,1781439065000,-635.3,0.00028219,8]
[425038533,1781439065000,-500.0,0.00028219,8]
[425038535,1781439065000,-239.18,0.00028219,8]
[425038534,1781439065000,-598.88,0.00028219,8]
[425038525,1781439065000,-254.68,0.00028219,8]
[425038518,1781439065000,-535.16,0.00028219,8]
[425038503,1781439065000,-598.27,0.00028219,8]
[425038514,1781439065000,-500.0,0.00028219,8]
[425038498,1781439065000,-500.0,0.00028219,8]
[425038497,1781439065000,-500.0,0.00028219,8]
[425038500,1781439065000,-500.0,0.00028219,8]
[425038499,1781439065000,-500.0,0.00028219,8]
[425038501,1781439065000,-500.0,0.00028219,8]
[425038502,1781439065000,-500.0,0.00028219,8]
[425038504,1781439065000,-500.0,0.00028219,8]
[425038536,1781439065000,-500.0,0.00028219,8]
[425038517,1781439065000,-603.32,0.00028219,8]
[425038506,1781439065000,-500.0,0.00028219,8]
[425038507,1781439065000,-500.0,0.00028219,8]
[425038509,1781439065000,-500.0,0.00028219,8]
[425038508,1781439065000,-500.0,0.00028219,8]
[425038511,1781439065000,-500.0,0.00028219,8]
[425038513,1781439065000,-500.0,0.00028219,8]
[425038510,1781439065000,-500.0,0.00028219,8]
[425038515,1781439065000,-500.0,0.00028219,8]
[425038512,1781439065000,-562.26,0.00028219,8]
[425038505,1781439065000,-500.0,0.00028219,8]
[425038538,1781439065000,-500.0,0.00028219,8]
[425038532,1781439065000,-500.0,0.00028219,8]
[425038540,1781439065000,-500.0,0.00028219,8]
[425038561,1781439065000,-500.0,0.00028219,8]
[425038564,1781439065000,-545.88,0.00028219,8]
[425038563,1781439065000,-369.79,0.00028219,8]
[425038565,1781439065000,-500.0,0.00028219,8]
[425038568,1781439065000,-500.0,0.00028219,8]
[425038566,1781439065000,-500.0,0.00028219,8]
[425038567,1781439065000,-318.74,0.00028219,8]
[425038570,1781439065000,-500.0,0.00028219,8]
[425038562,1781439065000,-473.12,0.00028219,8]
[425038569,1781439065000,-500.0,0.00028219,8]
[425038571,1781439065000,-500.0,0.00028219,8]
[425038573,1781439065000,-500.0,0.00028219,8]
[425038574,1781439065000,-419.56,0.00028219,8]
[425038576,1781439065000,-500.0,0.00028219,8]
[425038575,1781439065000,-322.89,0.00028219,8]
[425038539,1781439065000,-500.0,0.00028219,8]
[425038579,1781439065000,-460.01,0.00028219,8]
[425038577,1781439065000,-500.0,0.00028219,8]
[425038572,1781439065000,-500.0,0.00028219,8]
[425038557,1781439065000,-397.18,0.00028219,8]
[425038578,1781439065000,-500.0,0.00028219,8]
[425038556,1781439065000,-500.0,0.00028219,8]
[425038559,1781439065000,-278.38,0.00028219,8]
[425038537,1781439065000,-1000.0,0.00028219,8]
[425038542,1781439065000,-500.0,0.00028219,8]
[425038544,1781439065000,-500.0,0.00028219,8]
[425038543,1781439065000,-500.0,0.00028219,8]
[425038545,1781439065000,-315.68,0.00028219,8]
[425038547,1781439065000,-500.0,0.00028219,8]
[425038546,1781439065000,-247.27,0.00028219,8]
[425038548,1781439065000,-500.0,0.00028219,8]
[425038541,1781439065000,-500.0,0.00028219,8]
[425038549,1781439065000,-500.0,0.00028219,8]
[425038550,1781439065000,-560.0,0.00028219,8]
[425038552,1781439065000,-500.0,0.00028219,8]
[425038553,1781439065000,-500.0,0.00028219,8]
[425038554,1781439065000,-500.0,0.00028219,8]
[425038558,1781439065000,-500.0,0.00028219,8]
[425038555,1781439065000,-500.0,0.00028219,8]
[425038551,1781439065000,-500.0,0.00028219,8]
[425038560,1781439065000,-500.0,0.00028219,8]
[425038601,1781439066000,-500.0,0.00028219,8]
[425038600,1781439066000,-257.66,0.00028219,8]
[425038602,1781439066000,-310.78,0.00028219,8]
[425038603,1781439066000,-439.45,0.00028219,8]
[425038604,1781439066000,-267.44,0.00028219,8]
[425038606,1781439066000,-500.0,0.00028219,8]
[425038607,1781439066000,-500.0,0.00028219,8]
[425038609,1781439066000,-315.6,0.00028219,8]
[425038605,1781439066000,-500.0,0.00028219,8]
[425038608,1781439066000,-171.8,0.00028219,8]
[425038613,1781439066000,-500.0,0.00028219,8]
[425038611,1781439066000,-500.0,0.00028219,8]
[425038614,1781439066000,-500.0,0.00028219,8]
[425038610,1781439066000,-508.58,0.00028219,8]
[425038598,1781439066000,-500.0,0.00028219,8]
[425038612,1781439066000,-500.0,0.00028219,8]
[425038599,1781439066000,-500.0,0.00028219,8]
[425038586,1781439066000,-500.0,0.00028219,8]
[425038593,1781439066000,-500.0,0.00028219,8]
[425038581,1781439066000,-265.0,0.00028219,8]
[425038580,1781439066000,-330.68,0.00028219,8]
[425038583,1781439066000,-500.0,0.00028219,8]
[425038582,1781439066000,-633.32,0.00028219,8]
[425038587,1781439066000,-615.21,0.00028219,8]
[425038588,1781439066000,-500.0,0.00028219,8]
[425038584,1781439066000,-384.0,0.00028219,8]
[425038590,1781439066000,-591.01,0.00028219,8]
[425038585,1781439066000,-500.0,0.00028219,8]
[425038589,1781439066000,-500.0,0.00028219,8]
[425038592,1781439066000,-203.18,0.00028219,8]
[425038591,1781439066000,-500.0,0.00028219,8]
[425038594,1781439066000,-436.91,0.00028219,7]